bitfinex/quotes_BTCUSD_20250705
["timestamp","ask_amount","ask_price","bid_price","bid_amount"]
[1751711609603,1.14378707,108340.0,108330.0,0.26152502]
[1751711609814,1.235224,108340.0,108330.0,0.26152502]
[1751711610054,1.235224,108340.0,108330.0,0.2522944]
[1751711610977,1.22599414,108340.0,108330.0,0.2522944]
[1751711614519,1.22599414,108340.0,108330.0,0.22460202]
[1751711614656,1.21676403,108340.0,108330.0,0.22460202]
[1751711615097,1.21676403,108340.0,108330.0,0.22460211]
[1751711615533,1.20753383,108340.0,108330.0,0.22460211]
[1751711620186,1.20753383,108340.0,108330.0,0.23383307]
[1751711622418,1.17981501,108340.0,108330.0,0.23383307]
[1751711629722,1.20756601,108340.0,108330.0,0.22460211]
[1751711630578,1.20756601,108340.0,108330.0,0.03998105]
[1751711638217,1.20756601,108340.0,108330.0,0.03075]
[1751711640639,1.20756601,108340.0,108330.0,0.03998105]
[1751711640852,1.20756601,108340.0,108330.0,0.04921201]
[1751711641053,1.20756601,108340.0,108330.0,0.03998105]
[1751711641457,1.20756601,108340.0,108330.0,5e-05]
[1751711642606,1.31083271,108340.0,108330.0,5e-05]
[1751711643444,1.31283271,108340.0,108330.0,5e-05]
[1751711643618,1.31483271,108340.0,108330.0,5e-05]
[1751711645655,1.29973271,108340.0,108330.0,5e-05]
[1751711645836,1.28433271,108340.0,108330.0,5e-05]
[1751711646042,1.28432885,108340.0,108330.0,5e-05]
[1751711647440,1.31482885,108340.0,108330.0,5e-05]
[1751711650799,1.27787043,108340.0,108330.0,5e-05]
[1751711651395,1.31482382,108340.0,108330.0,5e-05]
[1751711652432,1.27787043,108340.0,108330.0,5e-05]
[1751711653500,1.89700955,108340.0,108330.0,5e-05]
[1751711653710,1.56243279,108340.0,108330.0,5e-05]
[1751711654868,1.56242404,108340.0,108330.0,5e-05]
[1751711655071,1.84156316,108340.0,108330.0,5e-05]
[1751711655235,1.91553133,108340.0,108330.0,5e-05]
[1751711655439,1.84156316,108340.0,108330.0,5e-05]
[1751711655608,1.56242404,108340.0,108330.0,5e-05]
[1751711658420,1.61779999,108340.0,108330.0,5e-05]
[1751711659362,1.56242404,108340.0,108330.0,5e-05]
[1751711659585,1.6004782,108340.0,108330.0,5e-05]
[1751711667258,1.5853782,108340.0,108330.0,5e-05]
[1751711669272,1.5699782,108340.0,108330.0,5e-05]
[1751711669457,1.56064636,108340.0,108330.0,5e-05]
[1751711670041,1.37504636,108340.0,108330.0,0.03125]
[1751711670244,1.46920943,108340.0,108330.0,0.03125]
[1751711673527,1.47836603,108340.0,108330.0,0.03125]
[1751711686572,1.46920943,108340.0,108330.0,0.03125]
[1751711687616,1.47858651,108340.0,108330.0,0.03125]
[1751711687816,1.57002344,108340.0,108330.0,0.03125]
[1751711691307,1.47858651,108340.0,108330.0,0.03125]
[1751711692179,1.30221671,108340.0,108330.0,0.21587106]
[1751711692386,1.48777671,108340.0,108330.0,0.03125]
[1751711702840,0.66173148,108340.0,108330.0,0.23433281]
[1751711703046,1.1264306,108340.0,108330.0,0.23433281]
[1751711703243,1.1264306,108340.0,108330.0,0.24356352]
[1751711703679,1.1264306,108340.0,108330.0,0.25279414]
[1751711704488,1.1264306,108340.0,108330.0,0.26202468]
[1751711706093,1.21786753,108340.0,108330.0,0.26202468]
[1751711706471,1.21786753,108340.0,108330.0,0.24356352]
[1751711707893,1.1264306,108340.0,108330.0,0.25279414]
[1751711709298,1.11705352,108340.0,108330.0,0.25279414]
[1751711709907,1.11705352,108340.0,108330.0,0.24356352]
[1751711710572,1.10782358,108340.0,108330.0,0.23433281]
[1751711713454,1.3869627,108340.0,108330.0,0.23433281]
[1751711715307,1.4531395,108340.0,108330.0,0.23433281]
[1751711716356,1.4626066,108340.0,108330.0,0.23433281]
[1751711716995,1.4626066,108340.0,108330.0,0.22510202]
[1751711720629,1.4626066,108340.0,108330.0,0.2343329]
[1751711721416,1.4626066,108340.0,108330.0,0.24356369]
[1751711722259,1.3964298,108340.0,108330.0,0.2527944]
[1751711722462,1.11729068,108340.0,108330.0,0.2527944]
[1751711722987,1.11729068,108340.0,108330.0,0.26202502]
[1751711723242,0.94191643,108340.0,108330.0,0.26202451]
[1751711723673,0.91416543,108340.0,108330.0,0.26202451]
[1751711724094,0.92339512,108340.0,108330.0,0.26202451]
[1751711724297,0.93262532,108340.0,108330.0,0.25279406]
[1751711724671,0.92339512,108340.0,108330.0,0.2620246]
[1751711725627,0.63502546,108340.0,108330.0,0.2620246]
[1751711725828,0.92339435,108340.0,108330.0,0.26202417]
[1751711726952,0.93262429,108340.0,108330.0,0.26202417]
[1751711727760,0.92339435,108340.0,108330.0,0.26202417]
[1751711727972,0.93262421,108340.0,108330.0,0.26202417]
[1751711728522,0.93262421,108340.0,108330.0,0.25279372]
[1751711728724,0.93262421,108340.0,108330.0,0.26202417]
[1751711730807,0.92339435,108340.0,108330.0,0.26202417]
[1751711733858,0.93262429,108340.0,108330.0,0.26202417]
[1751711734471,0.93262421,108340.0,108330.0,0.26202417]
[1751711736394,0.93262421,108340.0,108330.0,0.25279372]
[1751711736609,0.94185424,108340.0,108330.0,0.25279372]
[1751711737218,0.93262421,108340.0,108330.0,0.25279372]
[1751711737566,0.94185424,108340.0,108330.0,0.25279372]
[1751711737761,0.93262421,108340.0,108330.0,0.26202417]
[1751711738404,0.94185415,108340.0,108330.0,0.25279372]
[1751711739870,0.94185475,108340.0,108330.0,0.24356318]
[1751711740238,0.94185475,108340.0,108330.0,0.25279372]
[1751711740593,0.94185475,108340.0,108330.0,0.24356318]
[1751711742983,0.94185475,108340.0,108330.0,0.25279372]
[1751711744625,0.93262472,108340.0,108330.0,0.26202417]
[1751711745077,0.93262472,108340.0,108330.0,0.25279372]
[1751711746303,0.93262472,108340.0,108330.0,0.26202417]
[1751711746979,0.92339478,108340.0,108330.0,0.26202417]
[1751711749085,0.93262481,108340.0,108330.0,0.25279372]
[1751711749483,0.91045618,108340.0,108330.0,0.25279372]
[1751711749780,0.92340862,108340.0,108330.0,0.26202417]
[1751711751112,0.93263865,108340.0,108330.0,0.25279372]
[1751711751811,0.93263865,108340.0,108330.0,0.26202417]
[1751711751977,0.93263865,108340.0,108330.0,0.25279372]
[1751711752563,0.92340862,108340.0,108330.0,0.26202417]
[1751711752763,0.93263856,108340.0,108330.0,0.26202417]
[1751711753348,0.93263856,108340.0,108330.0,0.25279372]
[1751711753951,0.93263856,108340.0,108330.0,0.26202417]
[1751711754583,0.93263856,108340.0,108330.0,0.24356318]
[1751711754785,0.94186859,108340.0,108330.0,0.24356318]
[1751711754961,0.94186859,108340.0,108330.0,0.25279372]
[1751711755587,0.94186859,108340.0,108330.0,0.24356318]
[1751711756591,0.94186859,108340.0,108330.0,0.25279372]
[1751711758715,1.03330552,108340.0,108330.0,0.25279372]
[1751711761394,1.03330603,108340.0,108330.0,0.24356318]
[1751711761646,1.02407583,108340.0,108330.0,0.24356318]
[1751711761841,1.30321495,108340.0,108330.0,0.25279372]
[1751711762173,1.02407583,108340.0,108330.0,0.24356318]
[1751711762588,1.02407583,108340.0,108330.0,0.25279372]
[1751711768791,1.02407583,108340.0,108330.0,0.24356318]
[1751711768994,1.03330594,108340.0,108330.0,0.24356318]
[1751711769308,1.03330594,108340.0,108330.0,0.25279372]
[1751711769579,1.03330594,108340.0,108330.0,0.24356318]
[1751711770270,1.03330594,108340.0,108330.0,0.25279372]
[1751711771037,1.03330594,108340.0,108330.0,0.24356318]
[1751711771445,1.02407583,108340.0,108330.0,0.25279372]
[1751711773643,0.9326389,108340.0,108330.0,0.25279372]
[1751711774658,0.92340887,108340.0,108330.0,0.26202417]
[1751711774813,0.92340887,108340.0,108330.0,0.25279372]
[1751711775152,0.93263898,108340.0,108330.0,0.25279372]
[1751711775713,0.93263898,108340.0,108330.0,0.24356318]
[1751711778920,1.0148458,108340.0,108330.0,0.25279372]
[1751711779194,1.02407591,108340.0,108330.0,0.25279372]
[1751711779486,1.02407656,108340.0,108330.0,0.24356318]
[1751711779781,1.02407656,108340.0,108330.0,0.25279372]
[1751711779987,1.02407656,108340.0,108330.0,0.24356318]
[1751711780360,1.01484645,108340.0,108330.0,0.24356318]
[1751711780560,1.01484645,108340.0,108330.0,0.25279372]
[1751711780934,1.02407656,108340.0,108330.0,0.24356318]
[1751711781334,1.02407656,108340.0,108330.0,0.23433256]
[1751711781538,1.02407656,108340.0,108330.0,0.24356318]
[1751711782716,1.02407656,108340.0,108330.0,0.25279372]
[1751711783135,1.30321568,108340.0,108330.0,0.25279372]
[1751711783359,1.30321568,108340.0,108330.0,0.24356318]
[1751711784399,1.30321568,108340.0,108330.0,0.25279372]
[1751711785144,1.30321584,108340.0,108330.0,0.25279372]
[1751711785748,1.02407672,108340.0,108330.0,0.24356318]
[1751711787024,1.30321584,108340.0,108330.0,0.24356318]
[1751711787801,1.30321584,108340.0,108330.0,0.25279372]
[1751711788001,1.30321584,108340.0,108330.0,0.24356318]
[1751711788304,1.30321584,108340.0,108330.0,0.25279372]
[1751711788714,1.30321576,108340.0,108330.0,0.25279372]
[1751711788963,1.30321576,108340.0,108330.0,0.24356318]
[1751711789167,1.31244587,108340.0,108330.0,0.24356318]
[1751711789379,1.31244587,108340.0,108330.0,0.23433256]
[1751711789839,0.75416763,108340.0,108330.0,0.23433256]
[1751711790075,1.31244587,108340.0,108330.0,0.24356318]
[1751711790357,1.31244587,108340.0,108330.0,0.23433256]
[1751711790608,1.3124463,108340.0,108330.0,0.23433256]
[1751711790844,1.30321644,108340.0,108330.0,0.2343329]
[1751711791085,1.48781884,108340.0,108330.0,0.23433299]
[1751711791328,1.48781884,108340.0,108330.0,0.21873299]
[1751711791563,1.38715197,108340.0,108330.0,0.2187329]
[1751711791783,1.38715197,108340.0,108330.0,0.21873299]
[1751711792022,1.38715197,108340.0,108330.0,0.22796378]
[1751711793213,1.38715197,108340.0,108330.0,0.23719449]
[1751711793597,1.38715197,108340.0,108330.0,0.22796378]
[1751711793822,1.44348066,108340.0,108330.0,0.22796378]
[1751711794463,1.38715197,108340.0,108330.0,0.22796378]
[1751711794936,1.38715197,108340.0,108330.0,0.21873299]
[1751711795504,1.38715197,108340.0,108330.0,0.22796378]
[1751711795706,1.38715197,108340.0,108330.0,0.21873299]
[1751711797036,1.38715197,108340.0,108330.0,0.22796378]
[1751711797244,1.403927,108340.0,108330.0,0.21873299]
[1751711798448,1.403927,108340.0,108330.0,0.22796395]
[1751711798638,1.403927,108340.0,108330.0,0.20950211]
[1751711798849,1.39469697,108340.0,108330.0,0.20027106]
[1751711799030,1.38546686,108340.0,108330.0,0.18467106]
[1751711799636,1.38546686,108340.0,108330.0,5e-05]
[1751711799885,1.50017359,108340.0,108330.0,5e-05]
[1751711800083,1.77931271,108340.0,108330.0,5e-05]
[1751711800489,1.80706471,108340.0,108330.0,5e-05]
[1751711800693,1.52792559,108340.0,108330.0,5e-05]
[1751711805848,1.52791688,108340.0,108330.0,5e-05]
[1751711808141,1.52791555,108340.0,108330.0,5e-05]
[1751711817353,1.49541555,108340.0,108330.0,5e-05]
[1751711818142,1.51071555,108340.0,108330.0,5e-05]
[1751711822246,1.52601555,108340.0,108330.0,5e-05]
[1751711826556,1.47064494,108340.0,108330.0,5e-05]
[1751711831871,1.4706563,108340.0,108330.0,5e-05]
[1751711836045,1.4553563,108340.0,108330.0,5e-05]
[1751711839586,1.4400563,108340.0,108330.0,5e-05]
[1751711841103,0.88169806,108340.0,108330.0,5e-05]
[1751711841309,1.42320127,108340.0,108330.0,5e-05]
[1751711841507,1.47865698,108340.0,108330.0,0.01545]
[1751711841715,1.42320127,108340.0,108330.0,0.01545]
[1751711842825,1.42320127,108340.0,108330.0,0.03045]
[1751711843625,1.62060637,108340.0,108330.0,5e-05]
[1751711844036,1.60440637,108340.0,108330.0,5e-05]
[1751711844318,1.58860637,108340.0,108330.0,5e-05]
[1751711869808,1.86774549,108340.0,108330.0,5e-05]
[1751711870243,1.89884549,108340.0,108330.0,5e-05]
[1751711871995,1.61970637,108340.0,108330.0,5e-05]
[1751711872214,1.60470637,108340.0,108330.0,5e-05]
[1751711872680,2.09310637,108340.0,108330.0,5e-05]
[1751711874094,2.07700637,108340.0,108330.0,5e-05]
[1751711878282,1.4272912,108340.0,108330.0,5e-05]
[1751711878484,1.98556944,108340.0,108330.0,0.03145]
[1751711881099,1.98556944,108340.0,108330.0,0.01615]
[1751711881308,1.98556944,108340.0,108330.0,5e-05]
[1751711885419,1.98556944,108340.0,108330.0,0.01615]
[1751711885592,2.07700637,108340.0,108330.0,0.01615]
[1751711886961,2.07700637,108340.0,108330.0,5e-05]
[1751711895414,2.07700659,108340.0,108330.0,5e-05]
[1751711903473,2.07700659,108340.0,108330.0,0.03185]
[1751711904964,1.98556966,108340.0,108330.0,0.03185]
[1751711914205,1.98556966,108340.0,108330.0,0.03185]
[1751711917421,1.98556966,108340.0,108330.0,0.01575]
[1751711924173,1.98556966,108340.0,108330.0,0.03095]
[1751711944181,0.53385202,108330.0,108320.0,0.14266074]
[1751711944385,1.14906586,108330.0,108320.0,0.14266083]
[1751711944789,1.17682186,108330.0,108320.0,0.14266083]
[1751711945608,1.17682186,108330.0,108320.0,0.14366083]
[1751711946175,1.17682186,108330.0,108320.0,0.15289273]
[1751711947327,1.17682186,108330.0,108320.0,0.18389273]
[1751711947529,1.26825879,108330.0,108320.0,0.18389273]
[1751711949331,1.17682186,108330.0,108320.0,0.18389273]
[1751711949908,0.89768274,108330.0,108320.0,0.18389273]
[1751711950114,1.17682186,108330.0,108320.0,0.18389273]
[1751711954305,1.23228374,108330.0,108320.0,0.18389273]
[1751711962734,0.69675824,108330.0,108320.0,0.20235559]
[1751711962934,1.07609035,108330.0,108320.0,0.20235576]
[1751711963240,1.16752728,108330.0,108320.0,0.18389273]
[1751711963384,1.22298916,108330.0,108320.0,0.18389273]
[1751711963567,1.30519555,108330.0,108320.0,0.032]
[1751711963770,1.58433467,108330.0,108320.0,0.001]
[1751711964206,1.61208967,108330.0,108320.0,0.001]
[1751711970329,1.58990647,108330.0,108320.0,0.001]
[1751711970534,1.61208898,108330.0,108320.0,0.001]
[1751711972123,1.33294986,108330.0,108320.0,0.001]
[1751711972349,1.61208898,108330.0,108320.0,0.001]
[1751711980741,1.29597527,108330.0,108320.0,0.001]
[1751711980969,1.57511439,108330.0,108320.0,0.001]
[1751711991567,1.29597527,108330.0,108320.0,0.001]
[1751711996954,1.57511439,108330.0,108320.0,0.001]
[1751712003497,1.01683615,108330.0,108320.0,0.001]
[1751712003724,1.57511439,108330.0,108320.0,0.001]
[1751712015290,0.19386983,108320.0,108310.0,0.24525253]
[1751712015519,1.11595099,108320.0,108310.0,0.24525253]
[1751712016615,1.11642186,108320.0,108310.0,0.24925253]
[1751712016824,1.11642186,108320.0,108310.0,0.24002003]
[1751712020800,1.11642186,108320.0,108310.0,0.23078745]
[1751712022259,1.11642186,108320.0,108310.0,0.24002003]
[1751712027308,0.55814362,108320.0,108310.0,0.24002003]
[1751712027527,1.11642186,108320.0,108310.0,0.24002003]
[1751712027735,1.11642186,108320.0,108310.0,0.23078745]
[1751712031767,1.11642186,108320.0,108310.0,0.22155478]
[1751712031980,1.10719013,108320.0,108310.0,0.23078753]
[1751712032381,1.10719013,108320.0,108310.0,0.2400202]
[1751712033238,1.10719013,108320.0,108310.0,0.24925278]
[1751712033847,1.10719013,108320.0,108310.0,0.25848519]
[1751712034095,0.82805101,108320.0,108310.0,0.25848519]
[1751712034346,0.73661408,108320.0,108310.0,0.25848519]
[1751712040237,1.0157532,108320.0,108310.0,0.25848519]
[1751712041421,1.0157532,108320.0,108310.0,0.26771752]
[1751712042542,1.02225292,108320.0,108310.0,0.26771752]
[1751712043209,0.7431138,108320.0,108310.0,0.26771752]
[1751712044316,0.82805101,108320.0,108310.0,0.26771752]
[1751712044539,0.83455075,108320.0,108310.0,0.26771752]
[1751712044945,1.11368987,108320.0,108310.0,0.26771752]
[1751712045563,0.55541163,108320.0,108310.0,0.24925278]
[1751712045814,1.11368987,108320.0,108310.0,0.24925278]
[1751712046780,1.11368987,108320.0,108310.0,0.25848519]
[1751712047195,1.11368987,108320.0,108310.0,0.24188519]
[1751712049902,1.11368987,108320.0,108310.0,0.22558519]
[1751712050412,0.55541163,108320.0,108310.0,0.22558519]
[1751712050612,1.11368987,108320.0,108310.0,0.22558519]
[1751712051534,0.37299572,108320.0,108310.0,0.22558519]
[1751712051766,0.76153745,108320.0,108310.0,0.26791752]
[1751712052217,0.77076892,108320.0,108310.0,0.26791701]
[1751712052655,0.77076892,108320.0,108310.0,0.2679165]
[1751712052868,0.58613082,108320.0,108310.0,0.2679165]
[1751712056059,0.57689892,108320.0,108310.0,0.2679165]
[1751712056639,0.58613005,108320.0,108310.0,0.2679165]
[1751712056968,0.59536178,108320.0,108310.0,0.2679165]
[1751712058741,0.57039867,108320.0,108310.0,0.2679165]
[1751712058985,0.57963031,108320.0,108310.0,0.2679165]
[1751712060174,0.57039867,108320.0,108310.0,0.2679165]
[1751712060404,0.57963023,108320.0,108310.0,0.2679165]
[1751712061454,0.57039867,108320.0,108310.0,0.2679165]
[1751712062094,0.38495859,108320.0,108310.0,0.2679165]
[1751712062311,0.57039859,108320.0,108310.0,0.2679165]
[1751712063700,0.29125947,108320.0,108310.0,0.2679165]
[1751712063934,0.57039859,108320.0,108310.0,0.2679165]
[1751712065287,0.57963015,108320.0,108310.0,0.2679165]
[1751712067197,0.58886188,108320.0,108310.0,0.2679165]
[1751712067420,0.57963015,108320.0,108310.0,0.2679165]
[1751712069484,0.58886179,108320.0,108310.0,0.2679165]
[1751712073237,0.59809352,108320.0,108310.0,0.2679165]
[1751712074196,0.59809352,108320.0,108310.0,0.2348165]
[1751712076223,0.82745156,108320.0,108310.0,0.2348165]
[1751712076431,0.81822017,108320.0,108310.0,0.2163521]
[1751712076834,1.09735929,108320.0,108310.0,0.2163521]
[1751712077379,1.09735929,108320.0,108310.0,0.22558434]
[1751712079731,1.09735929,108320.0,108310.0,0.2163521]
[1751712080310,1.08812773,108320.0,108310.0,0.2163521]
[1751712081252,1.07889609,108320.0,108310.0,0.20711977]
[1751712081858,1.03417683,108320.0,108310.0,0.20711977]
[1751712085404,1.03417683,108320.0,108310.0,0.2163521]
[1751712086441,0.84953873,108320.0,108310.0,0.22558434]
[1751712087127,0.57039961,108320.0,108310.0,0.22558434]
[1751712087811,0.84953873,108320.0,108310.0,0.22558434]
[1751712088635,0.90204103,108320.0,108310.0,0.22558434]
[1751712090084,0.90204103,108320.0,108310.0,0.2163521]
[1751712090412,0.90204103,108320.0,108310.0,0.22558434]
[1751712092731,0.90204103,108320.0,108310.0,0.25718434]
[1751712093703,0.34376279,108320.0,108310.0,0.24158434]
[1751712093893,0.90204103,108320.0,108310.0,0.24158434]
[1751712094437,0.90204103,108320.0,108310.0,0.22558434]
[1751712095857,0.84953873,108320.0,108310.0,0.22558434]
[1751712101052,0.8495383,108320.0,108310.0,0.2665165]
[1751712101673,0.57039918,108320.0,108310.0,0.2665165]
[1751712103042,0.8495383,108320.0,108310.0,0.2665165]
[1751712104936,0.84954252,108320.0,108310.0,0.2665165]
[1751712106166,0.5704034,108320.0,108310.0,0.2665165]
[1751712107555,0.5704034,108320.0,108310.0,0.2501165]
[1751712109110,0.5704034,108320.0,108310.0,0.2348165]
[1751712109690,0.56117142,108320.0,108310.0,0.2348165]
[1751712109871,0.57963462,108320.0,108310.0,0.2348165]
[1751712110073,0.85877374,108320.0,108310.0,0.2348165]
[1751712111385,0.82180032,108320.0,108310.0,0.2348165]
[1751712119766,0.5426612,108320.0,108310.0,0.2348165]
[1751712122821,0.05961888,108320.0,108310.0,0.2653165]
[1751712123011,0.54266103,108320.0,108310.0,0.2653165]
[1751712123808,0.54266095,108320.0,108310.0,0.2653165]
[1751712124844,0.55189268,108320.0,108310.0,0.2653165]
[1751712125548,0.55189268,108320.0,108310.0,0.2348165]
[1751712127756,0.86060868,108320.0,108310.0,0.2348165]
[1751712128118,0.8698405,108320.0,108310.0,0.2348165]
[1751712128251,0.8849405,108320.0,108310.0,0.2348165]
[1751712128645,0.8698405,108320.0,108310.0,0.2348165]
[1751712130275,0.84026362,108320.0,108310.0,0.2348165]
[1751712132558,0.8310318,108320.0,108310.0,0.2348165]
[1751712135526,0.55189268,108320.0,108310.0,0.2348165]
[1751712135728,0.82180007,108320.0,108310.0,0.2348165]
[1751712135926,0.55189259,108320.0,108310.0,0.2348165]
[1751712136806,0.56112432,108320.0,108310.0,0.2348165]
[1751712140981,0.84026404,108320.0,108310.0,0.2348165]
[1751712148417,0.87723746,108320.0,108310.0,0.2348165]
[1751712151210,0.59809834,108320.0,108310.0,0.2348165]
[1751712153851,0.58886652,108320.0,108310.0,0.2348165]
[1751712154267,0.5518931,108320.0,108310.0,0.2348165]
[1751712154899,0.83103222,108320.0,108310.0,0.2348165]
[1751712156666,0.5518931,108320.0,108310.0,0.2348165]
[1751712161095,0.53342973,108320.0,108310.0,0.2348165]
[1751712161364,0.54266146,108320.0,108310.0,0.2348165]
[1751712181344,0.53342973,108320.0,108310.0,0.2348165]
[1751712181552,0.54266146,108320.0,108310.0,0.2348165]
[1751712195574,0.26352234,108320.0,108310.0,0.2348165]
[1751712195776,0.54266146,108320.0,108310.0,0.2348165]
[1751712196000,1.03733911,108320.0,108310.0,0.01323275]
[1751712196145,1.16574946,108320.0,108310.0,0.21635298]
[1751712196358,1.16574946,108320.0,108310.0,0.20712048]
[1751712196359,1.06508097,108320.0,108310.0,0.20712048]
[1751712197177,1.05584924,108320.0,108310.0,0.20712048]
[1751712198306,1.05584924,108320.0,108310.0,0.21635298]
[1751712199627,1.04054924,108320.0,108310.0,0.22558539]
[1751712199785,1.04054924,108320.0,108310.0,0.23481772]
[1751712200779,1.02494924,108320.0,108310.0,0.23481772]
[1751712203332,1.0434127,108320.0,108310.0,0.23481721]
[1751712205801,1.0434127,108320.0,108310.0,0.22558497]
[1751712212042,1.12561807,108320.0,108310.0,0.20712023]
[1751712212221,1.15761807,108320.0,108310.0,0.20712023]
[1751712217043,1.06618114,108320.0,108310.0,0.20712023]
[1751712221277,1.06618114,108320.0,108310.0,0.21635264]
[1751712221820,1.05018114,108320.0,108310.0,0.21635264]
[1751712225572,1.03418114,108320.0,108310.0,0.21635264]
[1751712235625,1.03418114,108320.0,108310.0,0.22558497]
[1751712235829,0.8495427,108320.0,108310.0,0.23481721]
[1751712236043,0.84954218,108320.0,108310.0,0.23481679]
[1751712236247,0.3757315,108320.0,108310.0,0.28021569]
[1751712236449,0.05038766,108320.0,108310.0,0.59115481]
[1751712236717,0.23578766,108320.0,108310.0,0.59115481]
[1751712236920,0.23578766,108320.0,108310.0,0.54575591]
[1751712237093,0.23578766,108320.0,108310.0,0.26661679]
[1751712237313,0.20805611,108320.0,108310.0,0.26661679]
[1751712238263,0.48719523,108320.0,108310.0,0.26661679]
[1751712238518,0.48719523,108320.0,108310.0,0.26666679]
[1751712238912,0.48729523,108320.0,108310.0,0.26666679]
[1751712239113,0.49652636,108320.0,108310.0,0.26666679]
[1751712240669,0.21738724,108320.0,108310.0,0.26666679]
[1751712240907,0.49652636,108320.0,108310.0,0.26666679]
[1751712242755,0.52422121,108320.0,108310.0,0.21640222]
[1751712242956,0.55195267,108320.0,108310.0,0.21640222]
[1751712243159,0.56118449,108320.0,108310.0,0.2164023]
[1751712243790,0.26358182,108320.0,108310.0,0.22563446]
[1751712244000,0.55195267,108320.0,108310.0,0.22563446]
[1751712246952,0.55195267,108320.0,108310.0,0.25743446]
[1751712247396,0.5334893,108320.0,108310.0,0.25743446]
[1751712247631,0.54272077,108320.0,108310.0,0.25743446]
[1751712248340,0.55195241,108320.0,108310.0,0.25743446]
[1751712251587,0.56118414,108320.0,108310.0,0.25743446]
[1751712255661,0.56118414,108320.0,108310.0,0.24123446]
[1751712257899,1.08041171,108320.0,108310.0,0.20717048]
[1751712258851,1.08041171,108320.0,108310.0,0.21640298]
[1751712259799,1.03049492,108320.0,108310.0,0.21640298]
[1751712259983,1.08037918,108320.0,108310.0,0.21640298]
[1751712260196,1.01569821,108320.0,108310.0,0.21640298]
[1751712260383,1.01569821,108320.0,108310.0,0.22563539]
[1751712260730,1.01569821,108320.0,108310.0,0.23486772]
[1751712261135,0.73655909,108320.0,108310.0,0.23486772]
[1751712264456,0.72732762,108320.0,108310.0,0.23486772]
[1751712264658,0.71809598,108320.0,108310.0,0.21640298]
[1751712264982,0.80953291,108320.0,108310.0,0.21640298]
[1751712270579,0.80953291,108320.0,108310.0,0.22563539]
[1751712274933,0.80953291,108320.0,108310.0,0.23486772]
[1751712276831,0.80953291,108320.0,108310.0,0.23486721]
[1751712277791,0.71809598,108320.0,108310.0,0.23486721]
[1751712283095,0.05045513,108320.0,108310.0,0.26626679]
[1751712283297,0.54264858,108320.0,108310.0,0.26626679]
[1751712283481,0.53341694,108320.0,108310.0,0.26626679]
[1751712283688,0.5426485,108320.0,108310.0,0.26626679]
[1751712283891,0.51493502,108320.0,108310.0,0.26626679]
[1751712284179,0.50570346,108320.0,108310.0,0.26626679]
[1751712284389,0.51493502,108320.0,108310.0,0.26626679]
[1751712285825,0.50570346,108320.0,108310.0,0.26626679]
[1751712285965,0.51493493,108320.0,108310.0,0.26626679]
[1751712286984,0.49647207,108320.0,108310.0,0.26626679]
[1751712287181,0.50570354,108320.0,108310.0,0.26626679]
[1751712287539,0.22656442,108320.0,108310.0,0.26626679]
[1751712287681,0.50570346,108320.0,108310.0,0.26626679]
[1751712290213,0.22656434,108320.0,108310.0,0.26626679]
[1751712290356,0.50570338,108320.0,108310.0,0.26626679]
[1751712294140,0.50570338,108320.0,108310.0,0.25036679]
[1751712294325,0.50570338,108320.0,108310.0,0.23486679]
[1751712298527,0.21733287,108320.0,108310.0,0.23486679]
[1751712298672,0.49647199,108320.0,108310.0,0.23486679]
[1751712300765,0.50570338,108320.0,108310.0,0.23486679]
[1751712300966,0.21733287,108320.0,108310.0,0.23486679]
[1751712303423,0.49647199,108320.0,108310.0,0.23486679]
[1751712304107,0.50570329,108320.0,108310.0,0.23486679]
[1751712305235,0.49647199,108320.0,108310.0,0.23486679]
[1751712305439,0.48724077,108320.0,108310.0,0.23486679]
[1751712305694,0.4964719,108320.0,108310.0,0.23486679]
[1751712306763,0.50570312,108320.0,108310.0,0.23486679]
[1751712307841,0.48732077,108320.0,108310.0,0.23486679]
[1751712308133,0.4965519,108320.0,108310.0,0.24986679]
[1751712308358,0.20818165,108320.0,108310.0,0.24986679]
[1751712310189,0.21741278,108320.0,108310.0,0.24986679]
[1751712310814,0.20818165,108320.0,108310.0,0.24986679]
[1751712312871,0.20818165,108320.0,108310.0,0.23486679]
[1751712313063,0.21741287,108320.0,108310.0,0.23486679]
[1751712313637,0.24512635,108320.0,108310.0,0.23486679]
[1751712313983,0.24512626,108320.0,108310.0,0.23486679]
[1751712315572,0.05968626,108320.0,108310.0,0.23486679]
[1751712315778,0.23589513,108320.0,108310.0,0.23486679]
[1751712315978,0.24512635,108320.0,108310.0,0.23486679]
[1751712316679,0.23589513,108320.0,108310.0,0.23486679]
[1751712318811,0.02274165,108320.0,108310.0,0.65208369]
[1751712318942,0.20814165,108320.0,108310.0,0.65208369]
[1751712324720,0.20814165,108320.0,108310.0,0.61998369]
[1751712325556,0.20814165,108320.0,108310.0,0.34084457]
[1751712326877,0.20814165,108320.0,108310.0,0.35674457]
[1751712330131,0.22660417,108320.0,108310.0,0.34084457]
[1751712330685,0.22660408,108320.0,108310.0,0.34084457]
[1751712330890,0.23583555,108320.0,108310.0,0.34084457]
[1751712331252,0.22660408,108320.0,108310.0,0.34084457]
[1751712334324,0.5057432,108320.0,108310.0,0.34084457]
[1751712334807,0.48728077,108320.0,108310.0,0.34084457]
[1751712335011,0.4965119,108320.0,108310.0,0.34084457]
[1751712335158,0.21737278,108320.0,108310.0,0.34084457]
[1751712335365,0.4965119,108320.0,108310.0,0.34084457]
[1751712335565,0.50574329,108320.0,108310.0,0.34084457]
[1751712336033,0.5057432,108320.0,108310.0,0.34084457]
[1751712336527,0.4965119,108320.0,108310.0,0.34084457]
[1751712336833,0.5057432,108320.0,108310.0,0.34084457]
[1751712340684,0.4965119,108320.0,108310.0,0.34084457]
[1751712340941,0.5057432,108320.0,108310.0,0.34084457]
[1751712343066,0.22660408,108320.0,108310.0,0.34084457]
[1751712346831,0.21737287,108320.0,108310.0,0.34084457]
[1751712347004,0.21737287,108320.0,108310.0,0.39084457]
[1751712347183,0.22660426,108320.0,108310.0,0.34084457]
[1751712347389,0.21737287,108320.0,108310.0,0.34084457]
[1751712347795,0.22660426,108320.0,108310.0,0.34084457]
[1751712347989,0.21737287,108320.0,108310.0,0.34084457]
[1751712348809,0.22660426,108320.0,108310.0,0.34084457]
[1751712349010,0.21737287,108320.0,108310.0,0.34084457]
[1751712349601,0.22660426,108320.0,108310.0,0.34084457]
[1751712349752,0.21737287,108320.0,108310.0,0.34084457]
[1751712350319,0.22660417,108320.0,108310.0,0.34084457]
[1751712353815,0.22660417,108320.0,108310.0,0.39084457]
[1751712354012,0.22660417,108320.0,108310.0,0.34084457]
[1751712358702,0.04120417,108320.0,108310.0,0.34084457]
[1751712358908,0.22656417,108320.0,108310.0,0.34084457]
[1751712361180,0.21733287,108320.0,108310.0,0.34084457]
[1751712363676,0.22656426,108320.0,108310.0,0.34084457]
[1751712364320,0.21733287,108320.0,108310.0,0.34084457]
[1751712364692,0.22656426,108320.0,108310.0,0.34084457]
[1751712364898,0.22656417,108320.0,108310.0,0.34084457]
[1751712371239,0.22657596,108320.0,108310.0,0.34084457]